lending/lending_fUSD_20250406
["ID","MTS","AMOUNT","RATE_DAILY","PERIOD"]
[357223367,1743921754634,-2365.71,0.00049315,120]
[357223368,1743921754665,-2365.71,0.00049315,120]
[357223369,1743921754694,-2365.71,0.00049315,120]
[357223370,1743921754720,-2365.71,0.00049315,120]
[357223371,1743921754747,-2365.71232349,0.00049315,120]
[357223372,1743921754775,-507.40494247,0.00049315,120]
[357223373,1743921754803,-507.75015997,0.00049315,120]
[357223374,1743921754834,-515.76527226,0.00049315,120]
[357223375,1743921754860,-522.35699421,0.00049315,120]
[357223376,1743921754885,-620.71562338,0.00049315,120]
[357223377,1743921754910,-510.7834168,0.00049315,120]
[357223378,1743921754938,-500.0,0.00049315,120]
[357223379,1743921754965,-537.22297195,0.00049315,120]
[357223380,1743921754993,-531.26039066,0.00049315,120]
[357223381,1743921755020,-505.11154492,0.00049315,120]
[357223382,1743921755046,-512.7321906,0.00049315,120]
[357223383,1743921755072,-511.35603801,0.00049315,120]
[357223384,1743921755098,-569.4655169,0.00049315,120]
[357223385,1743921755124,-523.00716821,0.00049315,120]
[357223386,1743921755151,-505.45833848,0.00049315,120]
[357223387,1743921755178,-504.64695725,0.00049315,120]
[357223388,1743921755207,-4162.39,0.00049315,120]
[357223389,1743921755237,-4162.39,0.00049315,120]
[357223390,1743921755266,-4162.39,0.00049315,120]
[357223391,1743921755295,-4162.39,0.00049315,120]
[357223392,1743921755322,-4162.39,0.00049315,120]
[357223393,1743921755348,-4162.39,0.00049315,120]
[357223394,1743921755374,-4162.39,0.00049315,120]
[357223395,1743921755401,-4162.39,0.00049315,120]
[357223396,1743921755604,-4162.39,0.00049315,120]
[357223397,1743921755630,-4162.39,0.00049315,120]
[357223398,1743921755654,-4162.39,0.00049315,120]
[357223399,1743921755678,-4162.39,0.00049315,120]
[357223400,1743921755701,-4162.39,0.00049315,120]
[357223401,1743921755725,-4162.39,0.00049315,120]
[357223402,1743921755748,-4162.39,0.00049315,120]
[357223403,1743921755771,-4162.39,0.00049315,120]
[357223404,1743921755795,-4162.39,0.00049315,120]
[357223405,1743921755819,-4162.39,0.00049315,120]
[357223406,1743921755843,-4162.39,0.00049315,120]
[357223407,1743921755865,-4162.39,0.00049315,120]
[357223408,1743921755903,-4162.39,0.00049315,120]
[357223409,1743921755930,-4162.39,0.00049315,120]
[357223410,1743921755955,-4162.39,0.00049315,120]
[357223411,1743921755980,-4162.44443397,0.00049315,120]
[357223412,1743921756006,-513.94085389,0.00049315,120]
[357223413,1743921756033,-186.06437298,0.00049315,120]
[357223414,1743921756057,-500.0,0.00049315,120]
[357223415,1743921756082,-500.0,0.00049315,120]
[357223416,1743921756107,-500.0,0.00049315,120]
[357223417,1743921756132,-500.0,0.00049315,120]
[357223418,1743921756158,-500.0,0.00049315,120]
[357223419,1743921756184,-500.0,0.00049315,120]
[357223420,1743921756213,-500.0,0.00049315,120]
[357223421,1743921756243,-500.0,0.00049315,120]
[357223422,1743921756269,-500.0,0.00049315,120]
[357223423,1743921756299,-500.0,0.00049315,120]
[357223424,1743921756324,-500.0,0.00049315,120]
[357223425,1743921756350,-228.57434692,0.00049315,120]
[357223426,1743921756377,-500.0,0.00049315,120]
[357223427,1743921756403,-500.0,0.00049315,120]
[357223428,1743921756429,-536.99535964,0.00049315,120]
[357223429,1743921756455,-500.0,0.00049315,120]
[357223430,1743921756481,-500.0,0.00049315,120]
[357223431,1743921756506,-500.0,0.00049315,120]
[357223432,1743921756531,-500.0,0.00049315,120]
[357223433,1743921756556,-500.0,0.00049315,120]
[357223434,1743921756581,-525.25146755,0.00049315,120]
[357223435,1743921756606,-523.64371176,0.00049315,120]
[357223436,1743921756635,-604.5306703,0.00049315,120]
[357223437,1743921756661,-512.14998327,0.00049315,120]
[357223438,1743921756685,-507.20865763,0.00049315,120]
[357223439,1743921756709,-512.19463993,0.00049315,120]
[357223440,1743921756735,-176.87221571,0.00049315,120]
[357223441,1743921756763,-579.06225456,0.00049315,120]
[357223442,1743921756789,-515.55277337,0.00049315,120]
[357223443,1743921756816,-535.69876416,0.00049315,120]
[357223444,1743921756841,-536.73616198,0.00049315,120]
[357223445,1743921756866,-506.60178913,0.00049315,120]
[357223446,1743921756890,-389.55482133,0.00049315,120]
[357223447,1743921756915,-188.54039663,0.00049315,120]
[357223448,1743921756941,-207.44534857,0.00049315,120]
[357223449,1743921756966,-502.1693456,0.00049315,120]
[357223450,1743921756991,-521.4990046,0.00049315,120]
[357223451,1743921757016,-500.0,0.00049315,120]
[357223452,1743921757041,-500.0,0.00049315,120]
[357223453,1743921757069,-500.0,0.00049315,120]
[357223454,1743921757094,-571.73933095,0.00049315,120]
[357223455,1743921757118,-182.11893619,0.00049315,120]
[357223456,1743921757145,-500.0,0.00049315,120]
[357223457,1743921757171,-202.42291271,0.00049315,120]
[357223458,1743921757201,-500.0,0.00049315,120]
[357223459,1743921757229,-500.0,0.00049315,120]
[357223460,1743921757258,-200.59067356,0.00049315,120]
[357223461,1743921757286,-332.46475769,0.00049315,120]
[357223462,1743921757312,-538.20017681,0.00049315,120]
[357223463,1743921757337,-164.90513737,0.00049315,120]
[357223464,1743921757365,-500.0,0.00049315,120]
[357223465,1743921757391,-318.58265663,0.00049315,120]
[357223466,1743921757418,-444.21493126,0.00049315,120]
[357223467,1743921757443,-523.69167396,0.00049315,120]
[357223468,1743921757470,-586.77559177,0.00049315,120]
[357223469,1743921757495,-574.67791415,0.00049315,120]
[357223470,1743921757522,-448.14792955,0.00049315,120]
[357223471,1743921757548,-215.74845192,0.00049315,120]
[357223472,1743921757573,-536.40722169,0.00049315,120]
[357223473,1743921757598,-590.73465639,0.00049315,120]
[357223474,1743921757623,-506.4074656,0.00049315,120]
[357223475,1743921757647,-500.0,0.00049315,120]
[357223476,1743921757674,-500.0,0.00049315,120]
[357223477,1743921757698,-500.0,0.00049315,120]
[357223478,1743921757723,-500.0,0.00049315,120]
[357223479,1743921757748,-505.33799027,0.00049315,120]
[357223480,1743921757773,-500.0,0.00049315,120]
[357223481,1743921757798,-500.0,0.00049315,120]
[357223482,1743921757823,-500.0,0.00049315,120]
[357223483,1743921757847,-297.56938289,0.00049315,120]
[357223484,1743921757880,-500.0,0.00049315,120]
[357223485,1743921757909,-500.0,0.00049315,120]
[357223486,1743921757935,-500.0,0.00049315,120]
[357223487,1743921757961,-524.48171677,0.00049315,120]
[357223488,1743921757987,-175.94545465,0.00049315,120]
[357223489,1743921758016,-194.57788765,0.00049315,120]
[357223490,1743921758042,-158.1372095,0.00049315,120]
[357223491,1743921758068,-500.0,0.00049315,120]
[357223492,1743921758093,-500.0,0.00049315,120]
[357223493,1743921758120,-500.0,0.00049315,120]
[357223494,1743921758146,-500.0,0.00049315,120]
[357223495,1743921758172,-500.0,0.00049315,120]
[357223496,1743921758198,-500.0,0.00049315,120]
[357223497,1743921758226,-500.0,0.00049315,120]
[357223498,1743921758413,-500.0,0.00049315,120]
[357223499,1743921758439,-500.0,0.00049315,120]
[357223500,1743921758464,-500.0,0.00049315,120]
[357223501,1743921758488,-500.0,0.00049315,120]
[357223502,1743921758513,-500.0,0.00049315,120]
[357223503,1743921758537,-500.0,0.00049315,120]
[357223504,1743921758562,-312.0739,0.00049315,120]
[357223505,1743921758586,-500.0,0.00049315,120]
[357223506,1743921758613,-500.0,0.00049315,120]
[357223507,1743921758637,-500.0,0.00049315,120]
[357223508,1743921758661,-500.0,0.00049315,120]
[357223509,1743921758685,-500.0,0.00049315,120]
[357223510,1743921758710,-500.0,0.00049315,120]
[357223511,1743921758734,-500.0,0.00049315,120]
[357223512,1743921758758,-500.0,0.00049315,120]
[357223513,1743921758783,-546.82881165,0.00049315,120]
[357223514,1743921758807,-500.0,0.00049315,120]
[357223515,1743921758831,-500.0,0.00049315,120]
[357223516,1743921758856,-500.0,0.00049315,120]
[357223517,1743921758880,-500.0,0.00049315,120]
[357223518,1743921758904,-500.0,0.00049315,120]
[357223519,1743921758930,-500.0,0.00049315,120]
[357223520,1743921758955,-500.0,0.00049315,120]
[357223521,1743921758979,-500.0,0.00049315,120]
[357223522,1743921759007,-500.0,0.00049315,120]
[357223523,1743921759033,-500.0,0.00049315,120]
[357223524,1743921759057,-500.0,0.00049315,120]
[357223525,1743921759082,-500.0,0.00049315,120]
[357223526,1743921759107,-500.0,0.00049315,120]
[357223527,1743921759134,-500.0,0.00049315,120]
[357223528,1743921759159,-519.13899845,0.00049315,120]
[357223529,1743921759184,-500.0,0.00049315,120]
[357223530,1743921759210,-454.74552029,0.00049315,120]
[357223531,1743921759239,-186.73953822,0.00049315,120]
[357223532,1743921759264,-500.0,0.00049315,120]
[357223533,1743921759290,-500.0,0.00049315,120]
[357223534,1743921759315,-159.53280889,0.00049315,120]
[357223535,1743921759339,-176.16316943,0.00049315,120]
[357223536,1743921759366,-443.3145068,0.00049315,120]
[357223537,1743921759391,-257.93623193,0.00049315,120]
[357223538,1743921759418,-276.43370622,0.00049315,100]
[357223539,1743921759444,-203.19241407,0.00049315,120]
[357223540,1743921759471,-500.0,0.00049315,120]
[357223541,1743921759496,-496.80274989,0.00049315,120]
[357223542,1743921759521,-156.28711649,0.00049315,120]
[357223543,1743921759548,-528.1181851,0.00049315,120]
[357223544,1743921759573,-355.16078132,0.00049315,120]
[357223545,1743921759599,-192.18276466,0.00049315,120]
[357223546,1743921759625,-500.0,0.00049315,120]
[357223547,1743921759650,-500.0,0.00049315,120]
[357223548,1743921759676,-500.0,0.00049315,120]
[357223549,1743921759701,-500.0,0.00049315,120]
[357223550,1743921759727,-500.0,0.00049315,120]
[357223551,1743921759752,-396.1071631,0.00049315,120]
[357223552,1743921759777,-198.08319209,0.00049315,120]
[357223553,1743921759801,-206.37,0.00049315,60]
[357223554,1743921759827,-213.70855184,0.000495,120]
[357223555,1743921759853,-392.270403,0.00049542,60]
[357223556,1743921759879,-156.908162,0.00049542,60]
[357223557,1743921759904,-172.598978,0.00049542,60]
[357223558,1743921759930,-2097.335592,0.00049542,60]
[357223559,1743921759955,-2200.42,0.000497,40]
[357223560,1743921759980,-458.53861243,0.000498,120]
[357223561,1743921760005,-469.77297064,0.000498,120]
[357223562,1743921760034,-151.0,0.000498,120]
[357223563,1743921760061,-152.971699,0.000498,120]
[357223564,1743921760087,-151.0,0.000498,120]
[357223565,1743921760113,-295.472738,0.000498,120]
[357223566,1743921760139,-151.0,0.000498,30]
[357223567,1743921760164,-151.0,0.000498,30]
[357223568,1743921760190,-151.0,0.000498,120]
[357223569,1743921760218,-151.0,0.000498,120]
[357223570,1743921760244,-151.0,0.000498,120]
[357223571,1743921760270,-151.0,0.000498,120]
[357223572,1743921760298,-151.0,0.000498,120]
[357223573,1743921760323,-151.0,0.000498,120]
[357223574,1743921760349,-151.0,0.000498,120]
[357223575,1743921760375,-151.0,0.000498,120]
[357223576,1743921760402,-200.026322,0.000498,120]
[357223577,1743921760427,-200.026322,0.000498,120]
[357223578,1743921760453,-200.026322,0.000498,120]
[357223579,1743921760477,-200.026322,0.000498,120]
[357223580,1743921760503,-151.0,0.000498,120]
[357223581,1743921760528,-151.0,0.000498,120]
[357223582,1743921760553,-151.0,0.000498,120]
[357223583,1743921760579,-151.0,0.000498,120]
[357223584,1743921760605,-151.0,0.000498,120]
[357223585,1743921760639,-151.0,0.000498,120]
[357223586,1743921760668,-192.0,0.000498,120]
[357223587,1743921760695,-296.64599,0.000498,120]
[357223588,1743921760721,-151.0,0.000498,90]
[357223589,1743921760746,-151.0,0.000498,90]
[357223590,1743921760771,-151.0,0.000498,120]
[357223591,1743921760796,-151.0,0.000498,120]
[357223592,1743921760821,-151.0,0.000498,120]
[357223593,1743921760846,-194.256721,0.000498,120]
[357223594,1743921760870,-151.0,0.000498,120]
[357223595,1743921760895,-234.496658,0.000498,120]
[357223596,1743921760920,-151.0,0.000498,120]
[357223597,1743921760946,-151.0,0.000498,120]
[357223598,1743921760971,-151.0,0.000498,120]
[357223599,1743921760996,-298.492445,0.000498,120]
[357223600,1743921761021,-212.6893,0.000498,120]
[357223601,1743921761046,-212.6893,0.000498,120]
[357223602,1743921761229,-168.221692,0.000498,120]
[357223603,1743921761256,-168.221692,0.000498,120]
[357223604,1743921761281,-168.221692,0.000498,120]
[357223605,1743921761306,-168.221692,0.000498,120]
[357223606,1743921761331,-459.433264,0.000498,120]
[357223607,1743921761355,-459.433264,0.000498,120]
[357223608,1743921761381,-459.433264,0.000498,120]
[357223609,1743921761405,-459.433264,0.000498,120]
[357223610,1743921761430,-155.279135,0.000498,120]
[357223611,1743921761455,-151.0,0.000498,120]
[357223612,1743921761481,-158.267347,0.000498,120]
[357223613,1743921761507,-151.0,0.000498,120]
[357223614,1743921761532,-155.546716,0.000498,120]
[357223615,1743921761560,-151.0,0.000498,120]
[357223616,1743921761586,-151.0,0.000498,120]
[357223617,1743921761611,-231.136778,0.000498,120]
[357223618,1743921761636,-191.27997,0.000498,120]
[357223619,1743921761661,-191.27997,0.000498,120]
[357223620,1743921761687,-191.27997,0.000498,120]
[357223621,1743921761714,-191.27997,0.000498,120]
[357223622,1743921761740,-3958.819868,0.000498,120]
[357223623,1743921761767,-3958.819868,0.000498,120]
[357223624,1743921761792,-151.0,0.000498,120]
[357223625,1743921761816,-151.0,0.000498,120]
[357223626,1743921761842,-3958.819868,0.000498,120]
[357223627,1743921761867,-3958.819868,0.000498,120]
[357223628,1743921761892,-554.605052,0.000498,120]
[357223629,1743921761917,-554.605052,0.000498,120]
[357223630,1743921761942,-554.605052,0.000498,120]
[357223631,1743921761971,-554.605052,0.000498,120]
[357223632,1743921761996,-213.668936,0.000498,120]
[357223633,1743921762021,-213.668936,0.000498,120]
[357223634,1743921762048,-213.668936,0.000498,120]
[357223635,1743921762073,-213.668936,0.000498,120]
[357223636,1743921762098,-151.0,0.000498,120]
[357223637,1743921762123,-156.688876,0.000498,120]
[357223638,1743921762149,-151.0,0.000498,120]
[357223639,1743921762174,-151.0,0.000498,120]
[357223640,1743921762202,-173.737105,0.000498,120]
[357223641,1743921762226,-151.0,0.000498,120]
[357223642,1743921762254,-151.0,0.000498,120]
[357223643,1743921762281,-151.0,0.000498,120]
[357223644,1743921762306,-151.0,0.000498,120]
[357223645,1743921762332,-151.0,0.000498,120]
[357223646,1743921762358,-151.0,0.000498,120]
[357223647,1743921762383,-3236.09830814,0.0004988,30]
[357223648,1743921762408,-351.7422948,0.000499,30]
[357223649,1743921762433,-186.02258139,0.000499,120]
[357223650,1743921762461,-500.0,0.00049999,120]
[357223651,1743921762488,-466.15919612,0.00049999,120]
[357223652,1743921762514,-500.0,0.00049999,120]
[357223653,1743921762540,-500.0,0.00049999,120]
[357223654,1743921762566,-500.0,0.00049999,120]
[357223655,1743921762593,-500.0,0.00049999,120]
[357223656,1743921762619,-500.0,0.00049999,120]
[357223657,1743921762645,-500.0,0.00049999,120]
[357223658,1743921762671,-319.54327651,0.00049999,120]
[357223659,1743921762698,-211.22536734,0.00049999,120]
[357223660,1743921762723,-415.71766542,0.00049999,120]
[357223661,1743921762747,-391.13035875,0.00049999,120]
[357223662,1743921762774,-500.0,0.00049999,120]
[357223663,1743921762810,-500.0,0.00049999,120]
[357223664,1743921762839,-500.0,0.00049999,120]
[357223665,1743921762865,-500.0,0.00049999,120]
[357223666,1743921762892,-500.0,0.00049999,120]
[357223667,1743921762918,-500.0,0.00049999,120]
[357223668,1743921762943,-500.0,0.00049999,120]
[357223669,1743921762969,-500.0,0.00049999,120]
[357223670,1743921762994,-500.0,0.00049999,120]
[357223671,1743921763019,-174.4225937,0.00049999,120]
[357223672,1743921763045,-249.58027189,0.0005,60]
[357223673,1743921763069,-184.0,0.0005,120]
[357223674,1743921763094,-170.0,0.0005,120]
[357223675,1743921763118,-1084.5631038,0.0005,120]
[357223676,1743921763145,-296.28602992,0.0005,120]
[357223677,1743921763171,-481.72617523,0.0005,120]
[357223678,1743921763197,-2776.0,0.0005,120]
[357223679,1743921763227,-157.84843391,0.0005,120]
[357223680,1743921763252,-4187.6655222,0.0005,120]
[357223681,1743921763278,-3000.0,0.0005,120]
[357223682,1743921763305,-20000.0,0.0005,120]
[357223683,1743921763330,-151.0,0.0005,120]
[357223684,1743921763355,-231.170566,0.0005,120]
[357223685,1743921763380,-500.0,0.00050045,60]
[357223686,1743921763406,-500.0,0.00050065,60]
[357223687,1743921763436,-500.0,0.0005009,60]
[357223688,1743921763462,-224.4232874,0.000501,120]
[357223689,1743921763487,-515.24677846,0.00050149,60]
[357223690,1743921763515,-500.0,0.00050188,60]
[357223691,1743921763540,-500.0,0.00050297,60]
[357223692,1743921763565,-1000.0,0.0005032,120]
[357223693,1743921763591,-500.0,0.00050366,60]
[357223694,1743921763616,-500.0,0.00050367,60]
[357223695,1743921763641,-931.2966517,0.00050376,120]
[357223696,1743921763666,-1000.0,0.000504,120]
[357223697,1743921763693,-40251.79,0.000505,120]
[357223698,1743921763718,-1000.0,0.000505,120]
[357223699,1743921763743,-500.0,0.00050562,60]
[357223700,1743921763769,-1000.0,0.000506,120]
[357223701,1743921763795,-27905.52926179,0.00050753,90]
[357223702,1743921763820,-500.0,0.00050759,60]
[357223703,1743921763852,-500.0,0.00050762,60]
[357223704,1743921763878,-503.38727411,0.00050787,60]
[357223705,1743921763906,-500.0,0.00050801,60]
[357223706,1743921763933,-500.0,0.00050848,60]
[357223707,1743921764124,-500.0,0.00050863,60]
[357223708,1743921764154,-154.49,0.00050881,120]
[357223709,1743921764180,-204.49438211,0.000509,120]
[357223710,1743921764208,-500.0,0.00050902,60]
[357223711,1743921764233,-500.0,0.00050927,60]
[357223712,1743921764262,-500.0,0.00050959,120]
[357223713,1743921764290,-500.0,0.00050959,120]
[357223714,1743921764317,-390.69978252,0.00050959,120]
[357223715,1743921764343,-154.52219806,0.00050959,120]
[357223716,1743921764368,-500.0,0.00050992,60]
[357223717,1743921764392,-15162.0,0.00051,120]
[357223718,1743921764418,-2000.0,0.00051,120]
[357223719,1743921764442,-278.93,0.00051,120]
[357223720,1743921764466,-692.49538054,0.00051,120]
[357223721,1743921764491,-317.0,0.00051,120]
[357223722,1743921764516,-629.0603178,0.00051,60]
[357223723,1743921764540,-6384.45555727,0.00051,120]
[357223724,1743921764565,-500.0,0.00051062,60]
[357223725,1743921764589,-500.0,0.00051094,60]
[357223726,1743921764614,-500.0,0.00051095,60]
[357223727,1743921764638,-773.0,0.00051158,30]
[357223728,1743921764662,-500.0,0.00051217,60]
[357223729,1743921764687,-500.0,0.00051221,60]
[357223730,1743921764712,-500.0,0.00051319,60]
[357223731,1743921764737,-500.0,0.00051335,60]
[357223732,1743921764762,-500.0,0.00051472,60]
[357223733,1743921764786,-999.49,0.0005148,30]
[357223734,1743921764811,-162.040611,0.00051498,120]
[357223735,1743921764836,-2492.0,0.000515,120]
[357223736,1743921764860,-500.0,0.00051566,60]
[357223737,1743921764884,-178.17896037,0.000516,30]
[357223738,1743921764909,-500.0,0.00051647,60]
[357223739,1743921764933,-525.59986349,0.00051664,60]
[357223740,1743921764958,-500.0,0.00051672,60]
[357223741,1743921764983,-773.0,0.00051685,30]
[357223742,1743921765008,-218.11224869,0.0005169,120]
[357223743,1743921765033,-1531030.9,0.0005169,120]
[357223744,1743921765058,-151.0,0.0005169,120]
[357223745,1743921765083,-289.501958,0.0005169,30]
[357223746,1743921765109,-151.0,0.0005169,120]
[357223747,1743921765135,-151.0,0.0005169,120]
[357223748,1743921765160,-151.0,0.0005169,120]
[357223749,1743921765185,-151.0,0.0005169,120]
[357223750,1743921765211,-200.026322,0.0005169,120]
[357223751,1743921765237,-200.026322,0.0005169,120]
[357223752,1743921765263,-151.0,0.0005169,120]
[357223753,1743921765288,-263.660639,0.0005169,120]
[357223754,1743921765313,-151.004488,0.0005169,90]
[357223755,1743921765338,-276.794376,0.0005169,120]
[357223756,1743921765363,-151.0,0.0005169,120]
[357223757,1743921765388,-212.6893,0.0005169,120]
[357223758,1743921765412,-212.6893,0.0005169,120]
[357223759,1743921765437,-168.221692,0.0005169,120]
[357223760,1743921765462,-168.221692,0.0005169,120]
[357223761,1743921765487,-459.433264,0.0005169,120]
[357223762,1743921765513,-459.433264,0.0005169,120]
[357223763,1743921765538,-151.0,0.0005169,120]
[357223764,1743921765563,-191.27997,0.0005169,120]
[357223765,1743921765587,-191.27997,0.0005169,120]
[357223766,1743921765613,-3958.819868,0.0005169,120]
[357223767,1743921765638,-151.0,0.0005169,120]
[357223768,1743921765663,-3958.819868,0.0005169,120]
[357223769,1743921765688,-554.605052,0.0005169,120]
[357223770,1743921765713,-554.605052,0.0005169,120]
[357223771,1743921765739,-213.668936,0.0005169,120]
[357223772,1743921765764,-213.668936,0.0005169,120]
[357223773,1743921765788,-164.356624,0.0005169,120]
[357223774,1743921765813,-151.0,0.0005169,120]
[357223775,1743921765837,-151.0,0.0005169,120]
[357223776,1743921765862,-151.0,0.0005169,120]
[357223777,1743921765887,-514.34858208,0.00051763,60]
[357223778,1743921765912,-666.0,0.0005178,120]
[357223779,1743921765936,-666.0,0.0005178,120]
[357223780,1743921765960,-666.0,0.0005178,120]
[357223781,1743921765986,-638.6785553,0.0005178,120]
[357223782,1743921766010,-481.44415317,0.0005178,60]
[357223783,1743921766037,-528.0831342,0.00051787,60]
[357223784,1743921766064,-392.270403,0.000518,120]
[357223785,1743921766091,-2097.335592,0.000518,120]
[357223786,1743921766117,-392.270403,0.0005185,120]
[357223787,1743921766143,-2097.335592,0.0005185,120]
[357223788,1743921766168,-214.44604886,0.00051877,120]
[357223789,1743921766195,-392.270403,0.00051889,60]
[357223790,1743921766235,-156.908162,0.00051889,60]
[357223791,1743921766263,-172.598978,0.00051889,60]
[357223792,1743921766291,-2097.335592,0.00051889,60]
[357223793,1743921766317,-165.381956,0.00051889,60]
[357223794,1743921766343,-4749.09540284,0.00051898,70]
[357223795,1743921766370,-392.270403,0.000519,120]
[357223796,1743921766398,-156.908162,0.000519,120]
[357223797,1743921766425,-2097.335592,0.000519,120]
[357223798,1743921766451,-164.22562423,0.000519,46]
[357223799,1743921766475,-654.6534688,0.000519,80]
[357223800,1743921766502,-392.270403,0.0005195,120]
[357223801,1743921766528,-156.908162,0.0005195,120]
[357223802,1743921766554,-172.598978,0.0005195,120]
[357223803,1743921766579,-2097.335592,0.0005195,120]
[357223804,1743921766606,-152.17427032,0.00051989,120]
[357223805,1743921766631,-1371.0275475,0.0005199,30]
[357223806,1743921766659,-1000000.0,0.00052,120]
[357223807,1743921766684,-706.0,0.00052,120]
[357223808,1743921766709,-415.54785915,0.00052,120]
[357223809,1743921766734,-230.31482804,0.00052,120]
[357223810,1743921766924,-397403.28889337,0.00052,120]
[357223811,1743921848469,9459.867061,7.945e-05,2]
[357223812,1743921863927,-2115.58,0.00044084,30]
[357223813,1743921863955,-211.0,0.0004679,30]
[357223814,1743921863983,-211.0,0.0004809,30]
[357223815,1743921864020,-211.0,0.0004939,30]
[357223816,1743921864047,-710.78427,0.000498,120]
[357223817,1743921864073,-710.78427,0.000498,120]
[357223818,1743921864100,-710.78427,0.000498,120]
[357223819,1743921864125,-710.78427,0.000498,120]
[357223820,1743921864150,-151.0,0.000498,120]
[357223821,1743921864176,-151.0,0.000498,120]
[357223822,1743921864202,-151.0,0.000498,120]
[357223823,1743921864242,-202.918035,0.000498,120]
[357223824,1743921864268,-170.15144,0.000498,120]
[357223825,1743921864294,-170.15144,0.000498,120]
[357223826,1743921864321,-170.15144,0.000498,120]
[357223827,1743921864347,-170.15144,0.000498,120]
[357223828,1743921864372,-151.0,0.000498,120]
[357223829,1743921864399,-151.0,0.000498,120]
[357223830,1743921864426,-2771.173908,0.000498,120]
[357223831,1743921864453,-2771.173908,0.000498,120]
[357223832,1743921864480,-2771.173908,0.000498,120]
[357223833,1743921864506,-2771.173908,0.000498,120]
[357223834,1743921864532,-151.0,0.000498,120]
[357223835,1743921864558,-151.0,0.000498,120]
[357223836,1743921864585,-500.0,0.00049999,120]
[357223837,1743921864612,-500.0,0.00049999,120]
[357223838,1743921864639,-402.32677811,0.00049999,120]
[357223839,1743921864665,-500.0,0.00050028,60]
[357223840,1743921864691,-500.0,0.00050063,60]
[357223841,1743921864716,-500.0,0.00050145,60]
[357223842,1743921864741,-211.0,0.000507,30]
[357223843,1743921864766,-210.0,0.000507,30]
[357223844,1743921864790,-210.0,0.000507,30]
[357223845,1743921864815,-861.8729536,0.00050762,60]
[357223846,1743921864840,-269.655866,0.00051,60]
[357223847,1743921864865,-500.0,0.00051509,60]
[357223848,1743921864889,-522.01301839,0.00051578,60]
[357223849,1743921864914,-710.78427,0.0005169,120]
[357223850,1743921864939,-710.78427,0.0005169,120]
[357223851,1743921864964,-151.0,0.0005169,120]
[357223852,1743921864991,-170.15144,0.0005169,120]
[357223853,1743921865168,-170.15144,0.0005169,120]
[357223854,1743921865195,-151.0,0.0005169,120]
[357223855,1743921865220,-2771.173908,0.0005169,120]
[357223856,1743921865250,-2771.173908,0.0005169,120]
[357223857,1743921865276,-211.0,0.0005199,30]
[357223858,1743921865301,-210.0,0.0005199,30]
[357223859,1743921865325,-210.0,0.0005199,30]
[357223860,1743921865353,-602596.71110663,0.00052,120]
[357223861,1743921865379,-1000000.0,0.00052,120]
[357223862,1743921865405,-1000000.0,0.00052,120]
[357223863,1743921865429,-285.08,0.00052,120]
[357223864,1743921865455,-34896.9,0.00052,60]
[357223865,1743921865480,-1500.0,0.00052,120]
[357223866,1743921865505,-764.68127855,0.00052,30]